bitfinex-derivatives/quotes_ETHF0:USTF0_20250114
["timestamp","ask_amount","ask_price","bid_price","bid_amount"]
[1736819277924,0.3185,3140.8,3140.4,0.31854]
[1736819278322,0.3185,3140.8,3140.3,3.2078]
[1736819278519,0.3185,3140.8,3140.3,3.52634]
[1736819279122,0.9651,3140.9,3140.5,2.57135683]
[1736819279426,0.4639,3141.3,3140.9,0.31849]
[1736819279619,0.31846,3141.2,3140.7,0.3185]
[1736819279819,0.31848,3141.0,3140.6,0.31851]
[1736819280014,0.4664,3140.9,3140.6,0.31851]
[1736819280224,0.4664,3140.9,3140.4,0.498]
[1736819280425,0.4664,3140.9,3140.7,0.3185]
[1736819281531,0.4664,3140.9,3140.8,0.3185]
[1736819281725,0.4519,3141.1,3140.8,0.3185]
[1736819281925,0.4519,3141.1,3140.8,0.31849]
[1736819282126,0.4519,3141.1,3140.7,0.3185]
[1736819282330,0.4519,3141.1,3140.8,0.31849]
[1736819282632,0.4519,3141.1,3140.5,2.57135683]
[1736819282834,0.4519,3141.1,3140.9,0.31848]
[1736819283030,0.4519,3141.1,3140.5,2.57135683]
[1736819283236,0.4519,3141.1,3140.7,0.3185]
[1736819283742,0.4519,3141.1,3140.8,0.3185]
[1736819283950,0.4519,3141.1,3140.5,2.57135683]
[1736819284242,0.4519,3141.1,3140.4,0.31853]
[1736819284442,0.3185,3140.8,3140.4,0.31853]
[1736819284637,3.2078,3140.9,3140.3,3.2078]
[1736819284837,3.2078,3140.9,3140.6,0.31851]
[1736819285744,3.52629,3140.9,3140.4,0.31854]
[1736819286048,0.3185,3140.8,3140.3,3.52634]
[1736819286247,0.31852,3140.6,3140.3,3.2078]
[1736819286452,0.78872,3140.7,3140.3,3.52634]
[1736819286650,0.4594,3140.5,3140.3,3.52634]
[1736819287152,0.4594,3140.5,3140.3,3.2078]
[1736819287443,0.4594,3140.5,3140.4,0.31854]
[1736819287746,0.4594,3140.5,3140.3,3.52635]
[1736819287946,0.4594,3140.5,3140.3,3.2078]
[1736819288353,0.4594,3140.5,3140.3,3.52634]
[1736819288742,0.4594,3140.5,3140.3,3.2078]
[1736819290442,0.4594,3140.5,3140.2,3.53255683]
[1736819290940,0.4594,3140.5,3140.2,3.85111683]
[1736819291347,0.4594,3140.5,3140.2,1.27976]
[1736819291547,0.4594,3140.5,3140.2,0.80606]
[1736819291743,0.4626,3140.4,3140.3,0.31855]
[1736819294446,3.678,3140.7,3140.4,0.31854]
[1736819294940,3.2078,3140.7,3140.2,3.05885683]
[1736819295146,3.2078,3140.7,3140.6,0.31852]
[1736819295646,3.2078,3141.2,3140.6,6.312]
[1736819295844,3.2078,3141.2,3141.1,2.88982683]
[1736819296243,3.2078,3141.2,3141.1,0.31847]
[1736819296441,3.2078,3141.2,3140.8,2.57135683]
[1736819296640,3.2078,3141.2,3140.7,1.443]
[1736819296846,3.2078,3141.2,3140.8,0.31849]
[1736819297051,3.2078,3141.2,3140.7,1.443]
[1736819297052,0.4904,3141.1,3140.7,1.443]
[1736819297353,0.4904,3141.1,3140.7,1.2802]
[1736819297555,0.4553,3141.0,3140.7,1.2802]
[1736819297854,0.4553,3141.0,3140.3,1.58354]
[1736819297855,0.3185,3140.8,3140.3,1.58354]
[1736819298041,0.3185,3140.8,3140.2,4.01165683]
[1736819298042,3.2078,3140.9,3140.2,1.4403]
[1736819298358,3.2078,3140.9,3140.2,0.4747]
[1736819298652,0.31854,3140.4,3140.1,1.312]
[1736819298953,3.2078,3140.9,3140.1,1.312]
[1736819298954,0.4904,3140.3,3140.1,1.312]
[1736819299155,0.9457,3140.3,3140.1,1.312]
[1736819299840,0.9457,3140.3,3140.0,3.52637]
[1736819300548,0.31856,3140.2,3139.9,0.4747]
[1736819300749,4.1535,3140.3,3139.6,4.5198]
[1736819301052,4.1535,3140.3,3139.9,0.31858]
[1736819301651,4.47205,3140.3,3139.8,2.88994683]
[1736819302241,0.31858,3140.1,3139.6,4.83841]
[1736819302445,4.1535,3140.3,3139.6,4.5198]
[1736819303150,0.31856,3140.2,3139.7,0.31861]
[1736819303850,2.57135683,3140.2,3139.6,3.2078]
[1736819304055,3.2078,3139.9,3139.4,0.31863]
[1736819304255,3.2078,3139.9,3139.7,0.3186]
[1736819304457,0.31856,3140.2,3139.7,0.3186]
[1736819305248,0.31856,3140.2,3139.6,0.4844]
[1736819305449,4.1535,3140.3,3139.2,7.09115683]
[1736819305660,0.31859,3139.9,3139.3,0.80304]
[1736819305957,0.4792,3139.8,3139.3,0.80304]
[1736819306160,0.4716,3139.7,3139.3,0.4844]
[1736819306352,0.4716,3139.7,3139.6,0.31862]
[1736819306850,0.4622,3139.8,3139.5,0.31862]
[1736819307257,0.4622,3139.8,3139.3,0.4844]
[1736819307453,0.4622,3139.8,3139.4,0.31864]
[1736819307649,0.31861,3139.7,3139.3,0.4844]
[1736819307850,0.4622,3139.8,3138.8,3.2078]
[1736819308250,0.31862,3139.6,3139.0,0.31867]
[1736819308460,0.9314,3139.5,3139.0,0.31867]
[1736819308764,0.9314,3139.5,3139.0,0.78767]
[1736819308953,1.25003,3139.5,3139.0,0.469]
[1736819309153,4.1392,3139.5,3138.9,2.57135683]
[1736819309350,0.31866,3139.3,3138.9,2.57135683]
[1736819309560,0.31864,3139.4,3138.9,2.57135683]
[1736819309859,0.4838,3139.2,3138.9,2.57135683]
[1736819310250,0.4838,3139.2,3138.9,2.89003683]
[1736819310454,0.4838,3139.2,3138.9,2.57135683]
[1736819311264,0.4838,3139.2,3138.9,2.89003683]
[1736819311563,0.4838,3139.2,3138.9,2.57135683]
[1736819311755,0.4838,3139.2,3138.9,2.89003683]
[1736819311956,0.4838,3139.2,3138.9,2.57135683]
[1736819312157,0.4838,3139.2,3138.9,2.89004683]
[1736819313865,0.4838,3139.2,3138.8,3.2078]
[1736819314063,0.4838,3139.2,3138.8,3.52649]
[1736819314262,0.4838,3139.2,3138.9,0.31869]
[1736819314458,0.4838,3139.2,3138.8,0.31869]
[1736819314657,0.4838,3139.2,3138.9,0.31869]
[1736819315751,0.4838,3139.2,3138.6,0.4684]
[1736819315956,0.4838,3139.2,3138.9,0.31869]
[1736819316157,0.4838,3139.2,3138.6,0.4684]
[1736819316466,3.2078,3139.1,3138.7,0.31871]
[1736819317364,3.2078,3139.1,3138.6,0.78711]
[1736819317365,3.52647,3139.1,3138.6,0.78711]
[1736819317863,3.2078,3139.1,3138.7,0.3187]
[1736819318062,3.2078,3139.1,3138.6,0.4684]
[1736819318363,3.2078,3139.1,3138.8,0.31869]
[1736819318760,3.2078,3139.1,3138.6,0.4684]
[1736819318961,3.2078,3139.1,3139.0,0.31868]
[1736819324065,4.45783,3139.5,3139.0,0.31868]
[1736819324270,4.45783,3139.5,3139.1,0.31867]
[1736819324470,4.45783,3139.5,3138.8,2.57135683]
[1736819324969,4.45783,3139.5,3139.1,0.31866]
[1736819325267,4.1392,3139.5,3138.8,2.57135683]
[1736819325567,4.1392,3139.5,3139.4,0.31864]
[1736819325568,3.2078,3139.5,3139.4,0.31864]
[1736819326264,3.2078,3139.5,3139.2,1.3965]
[1736819326471,3.2078,3139.5,3139.2,1.71515]
[1736819326670,3.2078,3139.5,3139.3,0.31864]
[1736819327164,3.2078,3139.5,3139.2,1.3965]
[1736819327471,3.2078,3139.5,3139.4,0.31864]
[1736819328572,0.4744,3139.7,3139.4,0.31864]
[1736819329376,3.2078,3139.5,3138.9,3.2078]
[1736819329570,3.2078,3139.5,3139.1,0.31866]
[1736819329867,3.2078,3139.6,3139.3,2.57135683]
[1736819330074,0.4744,3139.7,3139.6,0.31862]
[1736819330668,0.4744,3139.7,3139.5,0.31862]
[1736819330873,0.4938,3139.8,3139.4,1.4869]
[1736819331077,0.4938,3139.8,3139.6,0.31861]
[1736819331274,3.678,3140.0,3139.7,3.2078]
[1736819331275,0.4702,3140.0,3139.7,3.2078]
[1736819331574,3.7035,3140.4,3139.9,2.57135683]
[1736819331876,3.7035,3140.4,3139.9,2.88993683]
[1736819331877,0.4702,3140.3,3139.9,2.88993683]
[1736819332074,0.4702,3140.3,3139.9,2.57135683]
[1736819332280,0.4702,3140.3,3139.7,3.2078]
[1736819332579,0.3186,3139.8,3139.7,3.2078]
[1736819332782,0.31856,3140.2,3139.7,3.2078]
[1736819333276,0.4702,3140.3,3139.7,3.2078]
[1736819333477,0.31858,3140.1,3139.7,3.2078]
[1736819333777,0.4702,3140.3,3139.7,3.2078]
[1736819333978,0.31858,3140.0,3139.7,3.2078]
[1736819335378,0.4702,3140.3,3139.5,0.31863]
[1736819335379,3.5264,3139.8,3139.5,0.31863]
[1736819335579,0.9081,3139.7,3139.5,0.31863]
[1736819335780,1.3672,3139.7,3139.5,0.31863]
[1736819336586,1.3672,3139.7,3139.4,1.76334]
[1736819337182,0.9136,3139.7,3139.4,1.4447]
[1736819337383,3.2078,3140.2,3139.6,2.57135683]
[1736819337681,3.2078,3140.2,3139.9,2.57135683]
[1736819337988,3.2078,3140.2,3140.0,0.78287]
[1736819338284,3.2078,3140.2,3140.0,1.74027]
[1736819338485,3.2078,3140.2,3140.0,1.74028]
[1736819339184,3.2078,3140.2,3140.0,1.74027]
[1736819339591,3.2078,3140.2,3140.0,1.4217]
[1736819340193,3.2078,3140.2,3140.0,0.9447]
[1736819340791,3.52636,3140.2,3139.7,0.7778]
[1736819340993,3.52636,3140.2,3139.7,1.2536]
[1736819341197,3.2078,3140.2,3139.7,0.935]
[1736819341389,0.31859,3139.9,3139.4,2.10543]
[1736819341695,1.7517,3139.8,3139.4,1.7868]
[1736819342394,1.4331,3139.8,3139.4,2.10543]
[1736819342695,1.7517,3139.8,3139.4,2.10543]
[1736819343294,1.4331,3139.8,3139.1,3.2078]
[1736819343496,1.4331,3139.8,3139.1,4.83746]
[1736819343497,0.31862,3139.6,3139.1,4.83746]
[1736819343900,1.4331,3139.8,3139.1,4.5188]
[1736819344096,1.4331,3139.8,3139.1,3.2078]
[1736819344295,0.31864,3139.5,3139.1,3.2078]
[1736819344494,0.31862,3139.6,3139.1,3.52646]
[1736819344698,1.4331,3139.8,3139.5,2.88998683]
[1736819344995,0.9495,3139.8,3139.6,0.31862]
[1736819345300,0.9495,3139.8,3139.6,1.79132]
[1736819345800,0.81467,3140.1,3139.6,1.79131]
[1736819346102,0.4536,3140.0,3139.6,1.4727]
[1736819346295,0.31859,3139.9,3139.6,1.4727]
[1736819346498,0.77218,3140.0,3139.6,1.4727]
[1736819347101,0.77218,3140.0,3139.5,2.88997683]
[1736819348397,3.2078,3140.2,3139.8,2.57135683]
[1736819348596,3.2078,3140.2,3140.1,2.57135683]
[1736819348806,0.4597,3140.4,3139.9,1.75218]
[1736819349008,0.4597,3140.4,3140.0,0.31857]
[1736819349305,0.31858,3140.0,3139.8,1.311]
[1736819349495,0.9507,3139.9,3139.6,0.31862]
[1736819349695,1.26929,3139.9,3139.4,0.31863]
[1736819349901,0.4988,3139.8,3139.3,1.311]
[1736819350102,0.4988,3139.8,3139.4,0.31863]
[1736819351003,0.9507,3139.9,3139.7,0.31861]
[1736819351306,0.9507,3139.9,3139.8,0.3186]
[1736819353005,0.9507,3139.9,3139.7,0.3186]
[1736819354504,0.9507,3139.9,3139.5,2.88998683]
[1736819354702,0.4922,3139.8,3139.5,2.88997683]
[1736819355005,0.4922,3139.8,3139.3,1.311]
[1736819355205,0.8108,3139.8,3139.3,1.311]
[1736819355410,0.4922,3139.8,3139.4,0.31863]
[1736819355708,0.8108,3139.8,3139.4,0.31863]
[1736819356203,0.31861,3139.7,3138.9,2.89003683]
[1736819356405,3.2078,3139.4,3138.9,2.57135683]
[1736819356607,0.4855,3139.3,3139.1,0.31867]
[1736819356808,0.4855,3139.3,3139.0,0.4774]
[1736819356809,0.9614,3139.3,3139.0,1.25457]
[1736819357002,0.9614,3139.3,3138.9,2.57135683]
[1736819357209,0.4922,3139.2,3138.9,2.57135683]
[1736819357809,0.4922,3139.2,3138.7,3.6852]
[1736819358408,0.81087,3139.2,3138.7,4.00391]
[1736819359407,0.4922,3139.2,3138.7,3.6852]
[1736819359607,0.4922,3139.2,3138.8,0.31869]
[1736819360106,0.4922,3139.2,3138.7,3.6852]
[1736819360307,0.4922,3139.2,3138.8,0.3187]
[1736819361808,0.81086,3139.2,3138.7,3.52651]
[1736819362013,0.4922,3139.2,3138.8,0.31869]
[1736819362616,0.81086,3139.2,3138.7,0.7875]
[1736819362915,0.4922,3139.2,3138.7,0.7875]
[1736819363517,0.4922,3139.2,3138.9,2.57135683]
[1736819363724,0.9614,3139.3,3139.2,0.31866]
[1736819364018,3.2078,3139.4,3139.2,2.89001683]
[1736819364320,3.2078,3139.4,3139.2,2.57135683]
[1736819364613,3.2078,3139.4,3139.2,0.31865]
[1736819364815,3.2078,3139.4,3138.9,2.57135683]
[1736819365018,0.31866,3139.2,3138.8,0.4561]
[1736819365208,0.9276,3139.1,3138.7,0.7875]
[1736819365414,0.9276,3139.1,3138.7,0.4688]
[1736819365610,0.9276,3139.1,3138.8,0.3187]
[1736819366618,0.4566,3139.3,3139.0,0.31867]
[1736819366811,0.9223,3139.3,3139.0,0.31867]
[1736819367012,0.9223,3139.3,3138.8,0.3187]
[1736819367212,0.9223,3139.3,3138.7,3.6766]
[1736819367420,0.9223,3139.3,3138.9,0.31868]
[1736819367713,0.9223,3139.3,3138.7,3.6766]
[1736819367918,0.9223,3139.3,3138.9,2.57135683]
[1736819368119,0.9223,3139.3,3139.0,0.9573]
[1736819368321,0.9223,3139.3,3139.0,0.78437]
[1736819369016,0.9223,3139.3,3138.7,3.6766]
[1736819369412,0.9223,3139.3,3138.9,0.31868]
[1736819372719,0.9223,3139.3,3139.0,0.31868]
[1736819373320,0.9223,3139.3,3138.7,0.4688]
[1736819373623,0.9223,3139.3,3138.9,0.31869]
[1736819375622,0.9223,3139.3,3139.0,0.31867]
[1736819377020,0.9223,3139.3,3138.9,0.31869]
[1736819377219,1.24095,3139.3,3138.8,0.31869]
[1736819377420,0.31866,3139.2,3138.7,3.99531]
[1736819377819,0.31867,3139.1,3138.7,3.99531]
[1736819378019,0.31866,3139.2,3138.7,3.99531]
[1736819378219,0.31866,3139.2,3138.8,0.3187]
[1736819378526,3.2078,3139.4,3139.1,2.57135683]
[1736819378823,0.4546,3139.8,3139.2,4.6359]
[1736819379020,0.4546,3139.8,3139.5,0.31862]
[1736819379220,0.9482,3139.8,3139.2,4.6359]
[1736819379420,0.9482,3139.8,3139.5,0.31862]
[1736819380118,0.9482,3139.8,3139.2,4.6359]
[1736819380328,0.9482,3139.8,3139.6,0.31862]
[1736819380631,0.29879332,3140.3,3139.7,2.57135683]
[1736819380930,3.2078,3141.6,3140.2,0.7964]
[1736819381121,0.4936,3141.5,3140.9,2.57135683]
[1736819381320,0.4936,3141.5,3141.0,0.31847]
[1736819381519,0.81203,3141.5,3140.9,2.88983683]
[1736819381927,0.4936,3141.5,3141.0,0.31847]
[1736819382332,0.4936,3141.5,3141.2,0.31845]
[1736819382524,0.4936,3141.5,3141.3,0.31844]
[1736819382725,3.2078,3141.6,3141.2,2.57135683]
[1736819382930,0.4805,3142.0,3141.5,2.57135683]
[1736819383131,3.2078,3142.1,3141.8,2.57135683]
[1736819383526,3.2078,3142.1,3142.0,0.31837]
[1736819383918,0.5015,3142.3,3141.8,6.09754683]
[1736819384330,0.5015,3142.3,3141.8,5.77915683]
[1736819384633,0.5015,3142.3,3142.0,0.31837]
[1736819385131,3.6977,3142.5,3141.9,0.31838]
[1736819385328,3.6977,3142.5,3141.8,2.88974683]
[1736819385531,3.6977,3142.5,3141.9,0.31838]
[1736819386928,3.2078,3142.9,3142.1,5.77915683]
[1736819387131,3.2078,3143.3,3143.0,0.31827]
[1736819387330,3.2078,3143.3,3142.8,2.88964683]
[1736819387631,3.2078,3143.3,3142.6,0.31831]
[1736819387830,3.2078,3143.3,3142.2,7.58945683]
[1736819387831,3.52604,3143.3,3142.2,7.58945683]
[1736819388434,3.2078,3143.3,3142.6,0.31831]
[1736819388826,3.52605,3143.3,3142.5,2.88967683]
[1736819389227,3.52605,3143.3,3142.6,0.31831]
[1736819389428,3.2078,3143.3,3142.6,0.31831]
[1736819390327,3.2078,3143.3,3142.7,0.3183]
[1736819390931,3.2078,3143.3,3142.5,2.57135683]
[1736819391432,3.2078,3143.3,3142.7,0.3183]
[1736819391828,3.2078,3143.3,3142.5,2.57135683]
[1736819392028,3.2078,3143.3,3142.2,5.0181]
[1736819392029,3.2078,3143.3,3142.9,0.31828]
[1736819392223,3.2078,3143.3,3142.5,2.57135683]
[1736819392423,3.2078,3143.3,3142.7,0.3183]
[1736819393134,3.52605,3143.3,3142.7,0.3183]
[1736819393334,3.2078,3143.3,3142.5,2.57135683]
[1736819393636,0.31825,3143.2,3142.6,0.31831]
[1736819394233,3.2078,3143.3,3142.7,0.3183]
[1736819394234,3.52604,3143.3,3142.7,0.3183]
[1736819394433,0.31826,3143.2,3142.6,0.31831]
[1736819394929,3.2078,3142.8,3142.2,0.5003]
[1736819395233,3.2078,3142.8,3142.2,3.07165683]
[1736819395433,3.2078,3143.2,3142.8,0.31829]
[1736819395632,3.2078,3143.2,3142.9,0.31828]
[1736819396434,0.9624,3143.5,3142.8,2.57135683]
[1736819396632,0.9624,3143.5,3143.0,0.31827]
[1736819397129,0.9624,3143.5,3142.8,2.57135683]
[1736819397335,0.31824,3143.4,3142.8,2.57135683]
[1736819397534,0.31824,3143.4,3142.8,2.88964683]
[1736819398126,0.31825,3143.2,3142.6,3.52611]
[1736819398331,3.52605,3143.2,3142.6,3.52611]
[1736819398531,3.2078,3143.2,3142.7,0.3183]
[1736819398734,3.2078,3143.2,3142.6,3.52611]
[1736819398735,0.31826,3143.1,3142.6,3.52611]
[1736819399035,0.31826,3143.1,3142.6,3.2078]
[1736819399434,0.31826,3143.1,3142.5,2.88967683]
[1736819399733,3.2078,3143.2,3142.6,0.31831]
[1736819399734,3.52606,3143.2,3142.6,0.31831]
[1736819399937,0.31826,3143.1,3142.5,2.88967683]
[1736819400133,0.3183,3142.8,3142.2,6.59780683]
[1736819400438,4.1563,3142.7,3142.2,5.77915683]
[1736819401038,4.1563,3142.7,3142.3,0.31834]
[1736819401237,4.1563,3142.7,3142.5,2.57135683]
[1736819401535,3.2078,3143.1,3142.6,0.31831]
[1736819401734,0.4671,3143.0,3142.6,0.31831]
[1736819402735,0.4671,3143.0,3142.5,2.88967683]
[1736819402927,0.4671,3143.0,3142.2,5.77915683]
[1736819403132,3.52611,3142.7,3142.2,5.77915683]
[1736819403741,0.4635,3142.6,3142.2,5.77915683]
[1736819403933,0.4635,3142.6,3142.2,3.2078]
[1736819404129,0.4635,3142.6,3141.6,3.03235683]
[1736819404334,3.2078,3142.3,3141.8,0.31839]
[1736819404738,3.7039,3142.3,3141.8,0.31839]
[1736819405050,3.2078,3142.3,3142.2,0.31835]
[1736819405232,0.4635,3142.6,3142.4,0.31833]
[1736819405543,0.4635,3142.6,3142.2,2.57135683]
[1736819405944,0.31833,3142.5,3142.0,0.4616]
[1736819406247,0.31833,3142.5,3141.9,6.09753683]
[1736819406431,0.4635,3142.6,3141.9,5.77915683]
[1736819406638,0.31835,3142.3,3141.7,0.3184]
[1736819406838,3.2078,3142.5,3141.6,3.35076683]
[1736819406839,0.31836,3142.2,3141.6,3.35076683]
[1736819407038,3.2078,3142.1,3141.6,3.03235683]
[1736819407744,0.4526,3142.2,3141.9,2.57135683]
[1736819407930,0.4526,3142.2,3142.0,0.31837]
[1736819408334,0.4526,3142.2,3141.9,2.88973683]
[1736819408535,3.2078,3142.5,3141.9,2.57135683]
[1736819408840,3.2078,3142.5,3142.2,2.88970683]
[1736819410240,3.2078,3142.5,3142.2,2.57135683]
[1736819410741,0.31834,3142.4,3141.9,2.57135683]
[1736819410943,0.4635,3142.6,3141.3,0.37106754]
[1736819410944,0.31839,3141.9,3141.3,0.37106754]
[1736819411136,0.4985,3141.8,3141.1,3.6723]
[1736819411336,3.2078,3141.5,3141.1,0.4645]
[1736819411540,0.5017,3141.7,3141.1,6.24365683]
[1736819411738,0.5017,3141.7,3141.3,0.31844]
[1736819411939,0.4985,3141.8,3141.4,2.57135683]
[1736819412239,0.8169,3141.8,3141.2,0.31845]
[1736819412439,0.4985,3141.8,3141.1,6.24365683]
[1736819412636,0.4985,3141.8,3141.3,0.31844]
[1736819412833,0.8169,3141.8,3141.2,0.31845]
[1736819413037,0.8169,3141.8,3140.8,3.03665683]
[1736819413038,3.2078,3141.5,3140.8,3.03665683]
[1736819413345,3.2078,3141.5,3140.8,2.57135683]
[1736819413547,0.31845,3141.3,3140.8,2.57135683]
[1736819413943,0.9722,3141.4,3140.9,0.31848]
[1736819414144,0.9722,3141.4,3140.9,0.31849]
[1736819414644,1.29064,3141.4,3140.8,2.57135683]
[1736819414844,1.29064,3141.4,3140.8,2.88984683]
[1736819415146,0.4711,3141.4,3140.9,0.31848]
[1736819415341,0.4711,3141.4,3140.8,2.57135683]
[1736819415648,0.4711,3141.4,3140.9,0.31849]
[1736819415945,0.4711,3141.4,3141.0,0.31847]
[1736819417546,0.4711,3141.4,3140.8,2.57135683]
[1736819417755,0.78954,3141.4,3140.8,2.88984683]
[1736819417947,0.4711,3141.4,3140.9,0.31848]
[1736819418651,0.4711,3141.4,3140.8,2.57135683]
[1736819418847,0.4711,3141.4,3140.9,0.31848]
[1736819420141,0.4711,3141.4,3141.0,0.31847]
[1736819420345,0.4985,3141.8,3141.1,5.77915683]
[1736819420548,3.2078,3141.9,3141.6,2.57135683]
[1736819420850,0.9352,3142.3,3141.7,0.3184]
[1736819421050,0.9352,3142.3,3141.6,2.57135683]
[1736819421349,3.2078,3142.5,3142.1,0.31836]
[1736819421548,3.2078,3142.5,3141.9,2.57135683]
[1736819421748,3.2078,3142.5,3142.2,2.57135683]
[1736819421939,3.2078,3142.5,3142.3,0.31834]
[1736819422342,3.2078,3142.5,3142.2,2.57135683]
[1736819422543,3.2078,3142.5,3142.4,0.31833]
[1736819424352,3.2078,3142.5,3142.3,0.31834]
[1736819424548,3.2078,3142.5,3142.4,0.31833]
[1736819425256,0.29869982,3143.3,3142.4,8.2078]
[1736819425563,3.2078,3143.5,3143.4,0.31823]
[1736819425746,3.2078,3143.5,3143.4,2.88958683]
[1736819425947,3.2078,3143.5,3143.4,2.57135683]
[1736819426151,3.2078,3143.5,3143.1,3.51165683]
[1736819426455,3.2078,3143.5,3143.3,0.31824]
[1736819426660,3.2078,3143.5,3143.1,3.04325683]
[1736819426854,3.52602,3143.5,3143.1,2.57135683]
[1736819427050,3.2078,3143.5,3143.1,2.57135683]
[1736819428153,3.2078,3143.5,3143.2,0.31825]
[1736819428352,3.2078,3143.5,3143.1,2.57135683]
[1736819428554,3.52603,3143.5,3142.9,0.31828]
[1736819428757,3.2078,3143.5,3143.0,0.31827]
[1736819428960,3.2078,3143.5,3142.8,5.77915683]
[1736819429250,3.2078,3143.5,3142.9,0.31828]
[1736819429755,3.2078,3143.5,3143.0,0.31827]
[1736819431152,0.31822,3143.6,3143.0,0.31827]
[1736819431350,3.2078,3143.6,3143.0,0.31827]
[1736819431553,0.31822,3143.5,3142.9,0.31828]
[1736819431848,3.52601,3143.6,3143.0,0.31827]
[1736819432455,0.31822,3143.5,3142.8,5.77915683]
[1736819432758,3.2078,3143.2,3142.8,2.57135683]
[1736819433058,0.4968,3143.1,3142.8,2.57135683]
[1736819434153,3.6944,3143.2,3143.1,0.31826]
[1736819434154,3.2078,3143.2,3143.1,0.31826]
[1736819434360,3.2078,3143.2,3143.1,2.88961683]
[1736819435451,0.4846,3143.6,3143.1,2.57135683]
[1736819435452,3.6924,3143.6,3143.1,2.57135683]
[1736819435656,3.6924,3143.6,3143.2,0.31825]
[1736819436555,3.6924,3143.6,3143.3,0.31824]
[1736819436957,3.6924,3143.6,3143.1,2.57135683]
[1736819437160,3.6924,3143.6,3143.3,0.31824]
[1736819437658,3.6924,3143.6,3143.4,0.31823]
[1736819438158,0.4846,3143.6,3143.4,2.57135683]
[1736819438354,0.4681,3143.9,3143.4,2.57135683]
[1736819438859,0.4681,3143.9,3143.6,0.3182]
[1736819439158,3.2078,3144.0,3143.9,0.31818]
[1736819439558,0.9406,3144.7,3143.9,1.62618]
[1736819439859,3.52584,3145.4,3144.8,0.31809]
[1736819440054,0.9398,3145.3,3144.9,2.57135683]
[1736819440253,3.2078,3145.4,3145.2,2.57135683]
[1736819440468,3.2078,3145.4,3145.3,0.31804]
[1736819440956,3.2078,3146.0,3145.5,0.31801]
[1736819441263,3.2078,3146.0,3145.3,3.2078]
[1736819441264,3.2078,3146.0,3145.6,2.57135683]
[1736819442460,0.31799,3145.9,3145.3,2.57135683]
[1736819442661,0.31799,3145.8,3145.3,2.57135683]
[1736819443059,3.2078,3146.0,3145.3,2.57135683]
[1736819443254,3.2078,3146.0,3145.6,2.88936683]
[1736819443954,3.2078,3146.0,3145.6,2.57135683]
[1736819444352,3.2078,3146.0,3145.6,2.88935683]
[1736819444956,3.2078,3146.0,3145.8,0.31799]
[1736819445557,3.2078,3146.0,3145.6,2.57135683]
[1736819445558,3.2078,3146.0,3145.9,2.88933683]
[1736819446059,3.2078,3146.4,3146.3,0.31793]
[1736819446260,3.2078,3146.4,3146.3,2.88928683]
[1736819446956,0.9203,3146.5,3146.3,2.57135683]
[1736819447452,3.2078,3146.8,3146.3,2.57135683]
[1736819447656,4.48119,3146.8,3146.3,2.57135683]
[1736819448860,4.1633,3146.8,3146.3,2.57135683]
[1736819449361,4.1633,3146.8,3146.6,2.57135683]
[1736819450655,4.1633,3146.8,3146.6,2.88925683]
[1736819451051,3.2078,3146.8,3146.6,2.88925683]
[1736819451257,3.2078,3146.8,3146.7,0.3179]
[1736819451963,3.2078,3146.8,3146.6,2.88926683]
[1736819453164,3.2078,3146.8,3146.6,2.57135683]
[1736819453364,3.2078,3147.2,3146.7,0.31789]
[1736819453668,3.2078,3147.2,3146.6,2.57135683]
[1736819453964,3.2078,3147.2,3146.7,0.31789]
[1736819454559,3.2078,3147.2,3146.9,2.57135683]
[1736819456457,3.2078,3147.2,3146.9,2.88922683]
[1736819456654,3.2078,3147.2,3147.0,0.31786]
[1736819456960,3.2078,3147.2,3147.1,0.31786]
[1736819457457,3.2078,3147.2,3146.9,2.57135683]
[1736819457662,3.2078,3147.2,3146.9,2.88922683]
[1736819458367,0.31786,3147.1,3146.5,2.88926683]
[1736819458554,0.31786,3147.1,3146.8,2.57135683]
[1736819458862,3.2078,3147.2,3146.8,2.57135683]
[1736819459453,3.2078,3147.2,3147.1,2.57135683]
[1736819459858,3.2078,3147.2,3146.8,2.57135683]
[1736819460464,0.31787,3147.0,3146.8,2.57135683]
[1736819460663,0.4646,3146.9,3146.8,2.57135683]
[1736819460863,0.4646,3146.9,3146.8,2.88924683]
[1736819461360,0.4543,3147.1,3146.8,2.88924683]
[1736819461766,0.4543,3147.1,3146.8,2.57135683]
[1736819461971,0.4833,3147.3,3147.1,0.31785]
[1736819462172,0.4833,3147.3,3147.2,2.57135683]
[1736819463164,0.4833,3147.3,3146.6,2.88926683]
[1736819463165,0.31785,3147.2,3146.6,2.88926683]
[1736819463370,1.26425,3147.2,3146.6,2.88926683]
[1736819463577,0.9464,3147.2,3146.6,2.57135683]
[1736819463867,0.31787,3147.0,3146.6,2.57135683]
[1736819464168,0.9464,3147.2,3146.6,2.57135683]
[1736819464669,0.31789,3146.8,3146.3,2.57135683]
[1736819465168,3.2078,3146.9,3146.3,2.57135683]
[1736819465663,3.52573,3146.5,3146.0,3.87735683]
[1736819465867,0.9349,3146.4,3146.0,4.19532683]
[1736819466865,0.9349,3146.4,3146.0,2.57135683]
[1736819467474,0.9349,3146.4,3145.7,2.57135683]
[1736819467676,0.31797,3146.0,3145.7,2.57135683]
[1736819468177,0.31796,3146.2,3145.7,2.57135683]
[1736819468569,1.4287,3146.4,3145.7,2.57135683]
[1736819468873,0.31796,3146.1,3145.7,2.57135683]
[1736819469673,3.2078,3146.0,3145.7,2.57135683]
[1736819469867,0.31799,3145.9,3145.7,2.57135683]
[1736819470472,0.4813,3145.8,3145.1,2.57135683]
[1736819470672,3.2078,3145.6,3145.1,0.31805]
[1736819471173,4.00551,3145.6,3145.1,0.31805]